fUSD/lending_fUSD_20250611
["ID","MTS","AMOUNT","RATE_DAILY","PERIOD"]
[365400078,1749653439442,-150.0,0.0001997,2]
[365400080,1749653439451,-500.0,0.00019973,2]
[365400097,1749653439612,-500.0,0.00019973,2]
[365400099,1749653439625,-510.12723358,0.00019973,2]
[365400101,1749653439636,-500.0,0.00019973,2]
[365400103,1749653439649,-648.41309017,0.00019973,2]
[365400105,1749653439658,-500.0,0.00019973,2]
[365400107,1749653439668,-500.0,0.00019973,2]
[365400109,1749653439677,-500.0,0.00019973,2]
[365400110,1749653439686,-500.0,0.00019973,2]
[365400112,1749653439694,-500.0,0.00019973,2]
[365400114,1749653439704,-500.0,0.00019973,2]
[365400116,1749653439713,-150.0,0.00019977,2]
[365400118,1749653439722,-150.0,0.00019981,2]
[365400120,1749653439732,-1000.0,0.00019985,2]
[365400122,1749653439741,-3321.2110278,0.00019986,2]
[365400124,1749653439751,-2790.0596138,0.00019986,2]
[365400126,1749653439760,-2258.9081998,0.00019986,2]
[365400128,1749653439770,-1727.7567858,0.00019986,2]
[365400130,1749653439779,-1196.6053718,0.00019986,2]
[365400132,1749653439789,-500.0,0.00019989,2]
[365400134,1749653439802,-637.53,0.00019989,2]
[365400136,1749653439812,-150.28,0.0001999,2]
[365400138,1749653439822,-150.28,0.0001999,2]
[365400140,1749653439831,-150.28,0.0001999,2]
[365400142,1749653439841,-150.28,0.0001999,2]
[365400144,1749653439850,-150.28,0.0001999,2]
[365400146,1749653439859,-150.28,0.0001999,2]
[365400148,1749653439868,-150.28,0.0001999,2]
[365400150,1749653439878,-150.28,0.0001999,2]
[365400152,1749653439890,-150.28,0.0001999,2]
[365400154,1749653439899,-150.28,0.0001999,2]
[365400155,1749653439907,-150.28,0.0001999,2]
[365400158,1749653439917,-150.28,0.0001999,2]
[365400159,1749653439926,-150.28,0.0001999,2]
[365400162,1749653439936,-150.28,0.0001999,2]
[365400163,1749653439944,-150.28,0.0001999,2]
[365400165,1749653439953,-150.28,0.0001999,2]
[365400167,1749653439963,-150.28,0.0001999,2]
[365400169,1749653439973,-150.28,0.0001999,2]
[365400171,1749653439982,-150.28,0.0001999,2]
[365400173,1749653439991,-150.28,0.0001999,2]
[365400175,1749653440001,-150.28,0.0001999,2]
[365400177,1749653440010,-150.28,0.0001999,2]
[365400179,1749653440019,-150.28,0.0001999,2]
[365400181,1749653440028,-150.28,0.0001999,2]
[365400183,1749653440037,-150.28,0.0001999,2]
[365400185,1749653440046,-150.28,0.0001999,2]
[365400187,1749653440055,-150.28,0.0001999,2]
[365400189,1749653440065,-150.28,0.0001999,2]
[365400191,1749653440075,-150.28,0.0001999,2]
[365400193,1749653440084,-150.28,0.0001999,2]
[365400195,1749653440094,-150.28,0.0001999,2]
[365400197,1749653440103,-150.28,0.0001999,2]
[365400199,1749653440113,-150.28,0.0001999,2]
[365400201,1749653440123,-3852.3624418,0.00019996,2]
[365400203,1749653440133,-200.0,0.00019997,2]
[365400205,1749653440143,-150.0,0.00019997,2]
[365400207,1749653440152,-150.0,0.00019997,2]
[365400209,1749653440161,-200.82939456,0.00019997,2]
[365400211,1749653440171,-150.0,0.00019997,2]
[365400213,1749653440180,-200.0,0.00019997,2]
[365400215,1749653440189,-85860.30078695,0.00019998,2]
[365400217,1749653440199,-666.0,0.00019999,2]
[365400219,1749653440209,-300.0,0.00019999,2]
[365400221,1749653440218,-300.0,0.00019999,2]
[365400223,1749653440228,-300.0,0.00019999,2]
[365400225,1749653440237,-300.0,0.00019999,2]
[365400227,1749653440247,-2002.63748951,0.00019999,2]
[365400229,1749653440257,-1000.0,0.00019999,2]
[365400231,1749653440267,-1000.0,0.00019999,2]
[365400232,1749653440277,-1000.0,0.00019999,2]
[365400234,1749653440286,-167.7,0.00019999,2]
[365400237,1749653440295,-1000.0,0.00019999,2]
[365400238,1749653440305,-1001.5382,0.00019999,2]
[365400240,1749653440314,-150.0,0.00019999,2]
[365400242,1749653440324,-7239.41784005,0.00019999,2]
[365400244,1749653440333,-3447.26956071,0.00019999,2]
[365400246,1749653440343,-1000.0,0.00019999,2]
[365400248,1749653440352,-1000.0,0.00019999,2]
[365400250,1749653440361,-1000.0,0.00019999,2]
[365400252,1749653440370,-1000.0,0.00019999,2]
[365400254,1749653440379,-1000.0,0.00019999,2]
[365400256,1749653440389,-1000.0,0.00019999,2]
[365400258,1749653440398,-500.0,0.00019999,2]
[365400260,1749653440407,-766508.90679111,0.0002,3]
[365400262,1749653440416,-22485.70429105,0.0002,3]
[365400265,1749653440431,-551756.8669076,0.0002,2]
[365400268,1749653440449,-200.0,0.0002,2]
[365400271,1749653440466,-233.14,0.0002,3]
[365400274,1749653440484,-317.0,0.0002,2]
[365400276,1749653440500,-212.0,0.0002,2]
[365400279,1749653440516,-211.0,0.0002,2]
[365400282,1749653440533,-237.0,0.0002,2]
[365400285,1749653440550,-209.4,0.0002,2]
[365400288,1749653440568,-209.4,0.0002,2]
[365400290,1749653440584,-19187.81,0.0002,2]
[365400293,1749653440603,-546513.04,0.0002,2]
[365400296,1749653440619,-1912432.06041091,0.0002,2]
[365400298,1749653440632,-6952.75261947,0.0002,2]
[365400299,1749653440652,-128605.32066629,0.0002,4]
[365400300,1749653440664,-651510.63759266,0.0002,2]
[365400301,1749653440687,-12194.79495243,0.0002,2]
[365400302,1749653440706,-10576.0,0.0002,2]
[365400306,1749653440760,-851.73062001,0.0002,2]
[365400309,1749653440779,-2318.81,0.0002,2]
[365400312,1749653440798,-13204.15099639,0.0002,2]
[365400314,1749653440816,-3839.07068106,0.0002,2]
[365400317,1749653440835,-551.15,0.0002,2]
[365400320,1749653440852,-3302.77136499,0.0002,2]
[365400323,1749653440872,-905.8372092,0.0002,2]
[365400326,1749653440890,-30430.91117821,0.0002,2]
[365400328,1749653440907,-691862.59775436,0.0002,2]
[365400472,1749653446452,-11183.44223525,0.00019864,2]
[365400473,1749653446462,-8717.24114165,0.0002,2]
[365400474,1749653446473,-703.5477234,0.0002,2]
[365400475,1749653446491,-605.7395795,0.0002,2]
[365400476,1749653446502,-2662.1625482,0.0002,2]
[365400477,1749653446532,-54964.99999999,0.0002,2]
[365400478,1749653446636,-16574.35311316,0.0002,2]
[365400479,1749653446651,-421.73427664,0.0002,2]
[365400480,1749653446662,-1733.43741363,0.0002,2]
[365400482,1749653544309,1539.56148202,0.00024658,120]
[365400483,1749653561960,234.71994,0.0001676,2]
[365400485,1749653836583,150.0,0.000202,15]
[365400486,1749653847253,150.0,0.000202,15]
[365400487,1749653866505,1192.44,0.00016898,2]
[365400488,1749654209115,152.0,0.00016822,3]
[365400489,1749654254580,160.65570302,0.0002,30]
[365400490,1749654283739,327.17,0.00013699,2]
[365400494,1749654441157,-300.0,0.00018263,2]
[365400495,1749654441179,-305.13,0.00018264,2]
[365400496,1749654441203,-305.47,0.00018264,2]
[365400497,1749654441225,-304.0,0.00018264,2]
[365400498,1749654441246,-305.92,0.00018264,2]
[365400499,1749654441268,-305.23,0.00018264,2]
[365400500,1749654441291,-304.29,0.00018264,2]
[365400501,1749654441313,-303.1,0.00018264,2]
[365400502,1749654441334,-302.17,0.00018264,2]
[365400503,1749654441355,-304.74,0.00018264,2]
[365400504,1749654441376,-300.98,0.00018264,2]
[365400505,1749654441398,-301.63,0.00018264,2]
[365400506,1749654441421,-302.41,0.00018264,2]
[365400507,1749654441444,-503.21,0.00018264,2]
[365400508,1749654441466,-509.32,0.00018264,2]
[365400509,1749654441489,-509.4,0.00018264,2]
[365400510,1749654441512,-503.9,0.00018264,2]
[365400511,1749654441536,-303.04,0.00018264,2]
[365400512,1749654441731,-303.96,0.00018264,2]
[365400513,1749654441753,-301.19,0.00018264,2]
[365400514,1749654441776,-300.51,0.00018264,2]
[365400515,1749654441799,-302.14,0.00018264,2]
[365400516,1749654441821,-301.68,0.00018264,2]
[365400517,1749654441842,-250.0,0.00018268,2]
[365400518,1749654441863,-305.05,0.00018272,2]
[365400519,1749654441885,-199.86088225,0.00018272,2]
[365400520,1749654446122,-103.45911775,0.00018272,2]
[365400521,1749654446143,-156.61,0.00018272,2]
[365400522,1749654446166,-303.04,0.00018316,2]
[365400523,1749654446188,-305.09,0.00018316,2]
[365400524,1749654446211,-301.28,0.0001858,2]
[365400525,1749654446233,-85.19503243,0.00018635,2]
[365400526,1749654454140,-735.43496757,0.00018635,2]
[365400527,1749654454162,-150.0,0.00018681,7]
[365400528,1749654454189,-86.61730523,0.00018701,2]
[365400542,1749654589680,5042.93386998,0.000202,15]
[365400547,1749654632331,-206.0,0.00018393,2]
[365400548,1749654632341,-305.2,0.00018393,2]
[365400549,1749654632350,-304.92,0.00018393,2]
[365400550,1749654632360,-305.32,0.00018393,2]
[365400551,1749654632370,-304.22,0.00018394,2]
[365400552,1749654632379,-300.03,0.00018396,2]
[365400553,1749654632389,-300.04,0.00018405,2]
[365400554,1749654632398,-301.45,0.00018454,2]
[365400555,1749654632407,-304.74,0.00018454,2]
[365400556,1749654632416,-300.51,0.00018701,2]
[365400557,1749654632426,-302.18,0.00018701,2]
[365400558,1749654632435,-833.29909032,0.00018732,2]
[365400559,1749654632444,-305.71,0.00018733,2]
[365400560,1749654632454,-522.03,0.00018852,2]
[365400561,1749654632463,-605.79182968,0.00018937,2]
[365400565,1749654639026,-60.20817032,0.00018937,2]
[365400566,1749654639036,-250.0,0.00018989,2]
[365400567,1749654639046,-207.4,0.00018999,2]
[365400568,1749654639055,-250.0,0.00019,2]
[365400569,1749654639065,-63.64635728,0.00019062,2]
[365400570,1749654639077,-186.35364272,0.00019062,2]
[365400571,1749654639086,-124.12329241,0.00019141,2]
[365400572,1749654639141,-108.40670759,0.00019141,2]
[365400573,1749654639150,-1192.44,0.00019162,2]
[365400574,1749654639160,-156.587,0.00019178,2]
[365400575,1749654639169,-166.61,0.0001929,2]
[365400576,1749654639179,-500.0,0.00019425,2]
[365400577,1749654639188,-151.0,0.00019452,2]
[365400578,1749654639201,-151.72516784,0.00019452,2]
[365400579,1749654639211,-151.0,0.00019452,2]
[365400580,1749654639221,-750.0,0.00019452,2]
[365400581,1749654639232,-154.31242224,0.00019452,2]
[365400582,1749654639242,-750.0,0.00019452,2]
[365400583,1749654639252,-750.0,0.00019452,2]
[365400584,1749654639262,-750.0,0.00019452,2]
[365400585,1749654639271,-750.0,0.00019452,2]
[365400586,1749654639280,-750.0,0.00019452,2]
[365400587,1749654639289,-621.74338249,0.00019452,2]
[365400588,1749654639301,-23900.0,0.00019463,2]
[365400589,1749654639310,-587.4,0.00019463,2]
[365400590,1749654639320,-708.79,0.00019568,2]
[365400591,1749654639329,-296.0,0.00019754,2]
[365400592,1749654639339,-500.0,0.0001984,2]
[365400593,1749654639348,-200.0,0.0001984,2]
[365400594,1749654639358,-396.344,0.0001987,2]
[365400595,1749654639367,-500.0,0.00019892,2]
[365400596,1749654639377,-500.0,0.00019892,2]
[365400597,1749654639386,-500.0,0.00019892,2]
[365400598,1749654639395,-500.0,0.00019892,2]
[365400599,1749654639405,-309.93021392,0.00019892,2]
[365400600,1749654639414,-294.74708975,0.00019892,2]
[365400601,1749654639424,-500.0,0.00019892,2]
[365400602,1749654639434,-500.0,0.00019892,2]
[365400603,1749654639444,-500.0,0.00019892,2]
[365400604,1749654639454,-500.0,0.00019892,2]
[365400605,1749654639463,-630.79604308,0.00019892,2]
[365400606,1749654639473,-429.70297289,0.00019892,2]
[365400607,1749654639483,-233.06335354,0.00019892,2]
[365400608,1749654639493,-500.0,0.00019892,2]
[365400609,1749654639502,-500.0,0.00019892,2]
[365400610,1749654639512,-500.0,0.00019892,2]
[365400611,1749654639521,-500.0,0.00019892,2]
[365400612,1749654639531,-500.0,0.00019892,2]
[365400613,1749654639540,-500.0,0.00019892,2]
[365400614,1749654639551,-500.0,0.00019892,2]
[365400615,1749654639560,-500.0,0.00019892,2]
[365400616,1749654639569,-500.0,0.00019892,2]
[365400617,1749654639579,-500.0,0.00019892,2]
[365400618,1749654639589,-500.0,0.00019892,2]
[365400619,1749654639598,-500.0,0.00019892,2]
[365400620,1749654639608,-500.0,0.00019892,2]
[365400621,1749654639617,-500.0,0.00019892,2]
[365400622,1749654639627,-500.0,0.00019892,2]
[365400623,1749654639636,-500.0,0.00019892,2]
[365400624,1749654639646,-500.0,0.00019892,2]
[365400625,1749654639656,-500.0,0.00019892,2]
[365400626,1749654639665,-500.0,0.00019892,2]
[365400627,1749654639674,-4684.30972426,0.00019892,2]
[365400628,1749654639684,-574.7391127,0.00019892,2]
[365400629,1749654639693,-165.95519301,0.00019892,2]
[365400630,1749654639703,-4684.30972426,0.00019893,2]
[365400631,1749654639712,-4684.30972426,0.00019894,2]
[365400632,1749654639722,-4684.30972426,0.00019895,2]
[365400633,1749654639731,-4684.30972426,0.00019896,2]
[365400634,1749654639741,-165.95519301,0.00019896,2]
[365400635,1749654639750,-4684.30972426,0.00019896,2]
[365400636,1749654639760,-4684.30972426,0.00019897,2]
[365400637,1749654639769,-4684.30972426,0.00019898,2]
[365400638,1749654639779,-7974.3191,0.00019899,2]
[365400639,1749654639790,-52586.54902161,0.00019899,2]
[365400640,1749654639802,-4684.30972426,0.00019899,2]
[365400641,1749654639812,-160.30486295,0.000199,2]
[365400642,1749654639823,-198.0,0.000199,2]
[365400643,1749654639832,-198.0,0.000199,4]
[365400644,1749654639842,-386.75859536,0.000199,2]
[365400645,1749654639851,-4684.30972426,0.000199,2]
[365400646,1749654639861,-253.06247591,0.000199,2]
[365400647,1749654639870,-529.78483016,0.000199,2]
[365400648,1749654639879,-1000.0,0.000199,2]
[365400649,1749654639888,-165.95519301,0.000199,2]
[365400650,1749654639897,-178.93188528,0.000199,2]
[365400651,1749654639907,-162.95459082,0.000199,2]
[365400652,1749654639916,-1248.239,0.00019934,2]
[365400653,1749654639925,-206.0,0.00019934,4]
[365400654,1749654639935,-200.0,0.0001997,2]
[365400655,1749654639945,-200.82939456,0.0001997,2]
[365400656,1749654639955,-150.0,0.0001997,2]
[365400657,1749654639965,-150.0,0.0001997,2]
[365400658,1749654639975,-150.0,0.0001997,2]
[365400659,1749654639984,-200.0,0.0001997,2]
[365400660,1749654639994,-500.0,0.00019973,2]
[365400661,1749654640004,-500.0,0.00019973,2]
[365400662,1749654640014,-500.0,0.00019973,2]
[365400663,1749654640024,-500.0,0.00019973,2]
[365400664,1749654640034,-500.0,0.00019973,2]
[365400665,1749654640046,-500.0,0.00019973,2]
[365400666,1749654640056,-500.0,0.00019973,2]
[365400667,1749654640065,-500.0,0.00019973,2]
[365400668,1749654640079,-500.0,0.00019973,2]
[365400669,1749654640088,-500.0,0.00019989,2]
[365400670,1749654640098,-500.0,0.00019989,2]
[365400671,1749654640108,-412.95125001,0.00019989,2]
[365400672,1749654640117,-500.0,0.00019989,2]
[365400673,1749654640127,-150.28,0.0001999,2]
[365400674,1749654640136,-150.28,0.0001999,2]
[365400675,1749654640146,-150.28,0.0001999,2]
[365400676,1749654640155,-213797.67675331,0.0001999,2]
[365400677,1749654640166,-150.28,0.0001999,2]
[365400678,1749654640176,-150.28,0.0001999,2]
[365400679,1749654640185,-150.28,0.0001999,2]
[365400680,1749654640198,-150.28,0.0001999,2]
[365400681,1749654640208,-150.28,0.0001999,2]
[365400682,1749654640218,-150.28,0.0001999,2]
[365400683,1749654640228,-150.28,0.0001999,2]
[365400684,1749654640239,-150.28,0.0001999,2]
[365400685,1749654640248,-150.28,0.0001999,2]
[365400686,1749654640258,-150.28,0.0001999,2]
[365400687,1749654640268,-150.28,0.0001999,2]
[365400694,1749654640278,-150.28,0.0001999,2]
[365400696,1749654640441,-150.28,0.0001999,2]
[365400698,1749654640451,-150.28,0.0001999,2]
[365400699,1749654640460,-150.28,0.0001999,2]
[365400700,1749654640469,-150.28,0.0001999,2]
[365400701,1749654640479,-150.28,0.0001999,2]
[365400702,1749654640489,-150.28,0.0001999,2]
[365400704,1749654640498,-150.28,0.0001999,2]
[365400706,1749654640508,-150.28,0.0001999,2]
[365400708,1749654640517,-150.28,0.0001999,2]
[365400709,1749654640526,-150.28,0.0001999,2]
[365400710,1749654640536,-150.28,0.0001999,2]
[365400711,1749654640546,-150.28,0.0001999,2]
[365400712,1749654640555,-150.28,0.0001999,2]
[365400713,1749654640564,-150.28,0.0001999,2]
[365400714,1749654640574,-150.28,0.0001999,2]
[365400715,1749654640584,-150.28,0.0001999,2]
[365400716,1749654640594,-150.28,0.0001999,2]
[365400717,1749654640603,-150.28,0.0001999,2]
[365400718,1749654640612,-1040.5230956,0.00019992,2]
[365400719,1749654640622,-10000.0,0.00019994,3]
[365400720,1749654640632,-881.1380202,0.00019996,2]
[365400721,1749654640641,-721.7529447,0.00019996,2]
[365400722,1749654640650,-562.3678693,0.00019996,2]
[365400723,1749654640660,-150.0,0.00019997,2]
[365400724,1749654640669,-150.0,0.00019997,2]
[365400725,1749654640679,-85860.30078695,0.00019998,2]
[365400726,1749654640688,-666.0,0.00019999,2]
[365400727,1749654640697,-306.20842097,0.00019999,2]
[365400728,1749654640707,-300.0,0.00019999,2]
[365400729,1749654640716,-300.0,0.00019999,2]
[365400730,1749654640725,-666.0,0.00019999,2]
[365400731,1749654640734,-442.60614661,0.00019999,2]
[365400732,1749654640744,-300.0,0.00019999,2]
[365400733,1749654640753,-1000.0,0.00019999,2]
[365400734,1749654640762,-1000.0,0.00019999,2]
[365400735,1749654640772,-1000.0,0.00019999,2]
[365400736,1749654640781,-2002.63748951,0.00019999,2]
[365400737,1749654640791,-1000.0,0.00019999,2]
[365400738,1749654640801,-7239.41784005,0.00019999,2]
[365400739,1749654640811,-1000.0,0.00019999,2]
[365400740,1749654640820,-167.7,0.00019999,2]
[365400741,1749654640829,-1000.0,0.00019999,2]
[365400742,1749654640839,-1000.0,0.00019999,2]
[365400743,1749654640849,-1000.0,0.00019999,2]
[365400744,1749654640858,-1000.0,0.00019999,2]
[365400745,1749654640867,-1000.0,0.00019999,2]
[365400746,1749654640877,-3447.26956071,0.00019999,2]
[365400747,1749654640887,-500.0,0.00019999,2]
[365400748,1749654640896,-150.0,0.00019999,2]
[365400749,1749654640905,-833.29909032,0.0002,3]
[365400750,1749654640915,-769458.51298361,0.0002,3]
[365400752,1749654640924,-22485.70429105,0.0002,3]
[365400753,1749654640934,-3072381.59466416,0.0002,2]
[365400755,1749654640943,-3950.0,0.0002,2]
[365400756,1749654640952,-1257.99390588,0.0002,2]
[365400757,1749654640961,-2835.54663393,0.0002,7]
[365400758,1749654640971,-11748.97619303,0.0002,2]
[365400759,1749654640980,-511.24305735,0.0002,7]
[365400760,1749654640989,-1015.04507315,0.0002,2]
[365400761,1749654640999,-2780.99793413,0.0002,2]
[365400763,1749654641007,-42438.8816391,0.0002,2]
[365400764,1749654641016,-3014.11112877,0.0002,2]
[365400765,1749654641025,-42466.23815962,0.0002,2]
[365400766,1749654641035,-209.4,0.0002,2]
[365400767,1749654641045,-2943.41,0.0002,2]
[365400768,1749654641054,-1005.3769,0.0002,2]
[365400769,1749654641063,-2000.0,0.0002,2]
[365400770,1749654641072,-9342.27,0.0002,8]
[365400771,1749654641081,-211.0,0.0002,2]
[365400772,1749654641090,-212.0,0.0002,2]
[365400773,1749654641099,-1178.28583254,0.0002,2]
[365400774,1749654641108,-74230.3,0.0002,2]
[365400775,1749654641117,-1500.0,0.0002,2]
[365400776,1749654641126,-1500.0,0.0002,2]
[365400777,1749654641135,-1500.0,0.0002,2]
[365400778,1749654641144,-1500.0,0.0002,2]
[365400779,1749654641154,-1500.0,0.0002,2]
[365400780,1749654641163,-1500.0,0.0002,2]
[365400781,1749654641171,-1500.0,0.0002,2]
[365400782,1749654641181,-1500.0,0.0002,2]
[365400783,1749654641194,-1500.0,0.0002,2]
[365400784,1749654641204,-1500.0,0.0002,2]
[365400785,1749654641213,-828.59,0.0002,2]
[365400786,1749654641222,-203.399788,0.0002,2]
[365400787,1749654641232,-3245.66421188,0.0002,2]
[365400788,1749654641241,-156253.31785807,0.0002,2]
[365400789,1749654641250,-598.25689724,0.0002,2]
[365400790,1749654641260,-500.000001,0.0002,3]
[365400791,1749654641269,-151.0,0.0002,2]
[365400792,1749654641279,-153.521237,0.0002,2]
[365400793,1749654641288,-151.0,0.0002,2]
[365400794,1749654641298,-151.0,0.0002,2]
[365400795,1749654641308,-151.0,0.0002,2]
[365400796,1749654641317,-151.0,0.0002,2]
[365400797,1749654641326,-242252.67570398,0.0002,2]
[365400798,1749654641340,-5449.66370919,0.0002,2]
[365400799,1749654641351,-852796.56375,0.0002,2]
[365400800,1749654641381,-4588.56555965,0.0002,2]
[365400801,1749654641392,-691862.59775436,0.0002,2]
[365400802,1749654641403,-10614.37480358,0.0002,2]
[365400803,1749654641414,-1893.36,0.0002,2]
[365400804,1749654641425,-1817.249975,0.0002,2]
[365400805,1749654641435,-1778.0,0.0002,2]
[365400806,1749654641447,-9329.93743045,0.0002,2]
[365400807,1749654641458,-609.44048538,0.0002,2]
[365400808,1749654641470,-1413.51110107,0.0002,2]
[365400809,1749654641481,-1309.9999,0.0002,2]
[365400818,1749654643378,-202.0,0.00018393,2]
[365400819,1749654643387,-21485.84155111,0.0002,2]
[365400820,1749654643570,-587.59448873,0.0002,2]
[365400821,1749654643582,-813.82868971,0.0002,2]
[365400822,1749654643593,-412012.87420158,0.0002,2]
[365400823,1749654643694,-535.16031567,0.0002,2]
[365400824,1749654643705,-1428.53654385,0.0002,2]
[365400825,1749654643716,-481.95085199,0.0002,2]
[365400932,1749654646304,-303.6,0.00018393,2]
[365400934,1749654646314,-196.4,0.00019892,2]
[365400937,1749654646334,-256.89270259,0.00019892,2]
[365400940,1749654646371,-46.70729741,0.00019892,2]
[365400941,1749654646381,-500.0,0.00019892,2]
[365400942,1749654646392,-365.10735119,0.00019892,2]
[365400943,1749654646401,-3933.79014676,0.0002,2]
[365400944,1749654646501,-2085.66541781,0.0002,2]
[365400945,1749654646512,-6913.06454165,0.0002,2]
[365400946,1749654646543,-443.52696278,0.00019892,2]
[365400947,1749654646556,-213.68241036,0.00019892,2]
[365400948,1749654646565,-6781.60652686,0.0002,2]
[365400949,1749654646608,-66073.60559802,0.0002,2]
[365400950,1749654744311,750.0,0.00024657,120]
[365400951,1749654748327,500.0,0.00016364,2]
[365400953,1749654878603,1244.3,0.00016711,2]
[365400954,1749655008189,244.0,0.00024657,120]
[365400955,1749655029506,222.0,0.00020201,29]
[365400956,1749655074727,3000.0,0.000202,15]
[365400960,1749655304706,335.51,0.00013699,2]
[365400962,1749655464901,1133.0,0.00024658,120]
[365400963,1749655553165,6406.01005088,0.00024657,120]
[365400964,1749655554579,628.89391332,0.0001798,2]
[365400965,1749655558528,963.98,0.00017909,2]
[365400966,1749655589621,161.34,0.00017898,2]
[365400967,1749655629021,10353.55798275,0.00020201,29]
[365400968,1749655637136,-150.0,0.00018119,2]
[365400969,1749655637159,-150.0,0.00018122,7]
[365400970,1749655637181,-7048.24455365,0.000182,5]
[365400971,1749655637203,-150.0,0.00018201,2]
[365400972,1749655637224,-448.26602166,0.00018206,2]
[365400973,1749655639132,-356.73397834,0.00018206,2]
[365400974,1749655639154,-954.39585938,0.00018268,2]
[365400975,1749655687915,317.213327,7.945e-05,2]
[365401001,1749655831732,-450.0,0.00018268,2]
[365401002,1749655831749,-419.30244326,0.00018268,2]
[365401003,1749655831974,-507.08169736,0.00018268,2]
[365401004,1749655831984,-300.0,0.00018321,2]
[365401005,1749655832000,-1200.0,0.00018321,2]
[365401006,1749655832009,-300.0,0.00018321,2]
[365401007,1749655832019,-302.38,0.00018322,2]
[365401008,1749655832028,-166.49215279,0.00018322,2]
[365401009,1749655832037,-301.34,0.00018322,2]
[365401010,1749655832047,-303.4,0.00018322,2]
[365401011,1749655832057,-305.93,0.00018322,2]
[365401012,1749655832067,-305.86,0.00018322,2]
[365401013,1749655832077,-156.61,0.00018322,2]
[365401014,1749655832087,-901.6,0.00018322,2]
[365401015,1749655832096,-6063.95707634,0.00018322,2]
[365401016,1749655836176,200.0,0.00017989,2]
[365401029,1749655837576,-115.83292366,0.00018322,2]
[365401030,1749655837586,-168.0,0.00018345,2]
[365401031,1749655837595,-301.32,0.00018353,2]
[365401032,1749655837606,-303.03,0.00018356,2]
[365401033,1749655837617,-304.29,0.0001836,2]
[365401034,1749655837916,-303.93,0.00018366,2]
[365401035,1749655837926,-10046.58355505,0.00018369,2]
[365401036,1749655837938,-333.42399999,0.00018369,2]
[365401038,1749655837955,-4631.18864923,0.00018369,2]
[365401040,1749655837965,-302.59,0.00018375,2]
[365401041,1749655837974,-303.32,0.00018375,2]
[365401043,1749655837983,-304.57,0.00018387,2]
[365401045,1749655837996,-303.24,0.00018392,2]
[365401047,1749655838005,-151.0,0.00018393,2]
[365401049,1749655838016,-503.11,0.00018394,2]
[365401051,1749655838025,-490.82,0.00018394,2]
[365401053,1749655838035,-6470.88560885,0.00018404,2]
[365401055,1749655838045,-304.95,0.00018405,2]
[365401057,1749655838055,-303.94,0.0001841,2]
[365401059,1749655838065,-385.0,0.00018429,2]
[365401061,1749655838074,-300.46,0.0001843,2]
[365401064,1749655838084,-496.59,0.0001843,2]
[365401065,1749655838094,-496.16,0.0001843,2]
[365401068,1749655838105,-498.36,0.0001843,2]
[365401070,1749655838114,-505.54,0.00018458,2]
[365401071,1749655838123,-500.4,0.00018458,2]
[365401073,1749655838133,-503.2,0.00018458,2]
[365401075,1749655838142,-205.0,0.00018475,2]
[365401077,1749655838152,-379.0,0.00018475,2]
[365401079,1749655838161,-509.37,0.00018496,2]